[Event "Early-Titled-Tuesday-Blitz-September-12-2023"]
[Site "Chess.com"]
[Date "2023.09.12"]
[Round "7"]
[White "Chessdreamer2020"]
[Black "mmDarko"]
[Result "0-1"]
[WhiteElo "2522"]
[BlackElo "2272"]
[TimeControl "180+1"]
[EndTime "9:15:23 PDT"]
[Termination "mmDarko won by resignation"]

1. e4 {[%clk 0:03:00]} 1... e6 {[%clk 0:03:00.9]} 2. b3 {[%clk 0:02:58.9]} 2...
d5 {[%clk 0:03:01.8]} 3. Bb2 {[%clk 0:02:59.8]} 3... c5 {[%clk 0:03:01.2]} 4.
exd5 {[%clk 0:02:57.6]} 4... exd5 {[%clk 0:03:01.2]} 5. Nf3 {[%clk 0:02:58.1]}
5... Nf6 {[%clk 0:03:01.1]} 6. Bb5+ {[%clk 0:02:58.4]} 6... Bd7 {[%clk
0:03:00.9]} 7. Bxd7+ {[%clk 0:02:58.6]} 7... Nbxd7 {[%clk 0:02:59.3]} 8. O-O
{[%clk 0:02:57.8]} 8... Be7 {[%clk 0:02:59.4]} 9. d4 {[%clk 0:02:58.1]} 9... O-O
{[%clk 0:02:59]} 10. Nc3 {[%clk 0:02:58.3]} 10... Rc8 {[%clk 0:02:55]} 11. Re1
{[%clk 0:02:57.7]} 11... c4 {[%clk 0:02:53.2]} 12. Ne2 {[%clk 0:02:46.8]} 12...
Ne4 {[%clk 0:02:39.6]} 13. c3 {[%clk 0:02:46.6]} 13... b5 {[%clk 0:02:29.5]} 14.
b4 {[%clk 0:02:46.4]} 14... a5 {[%clk 0:02:28.1]} 15. a3 {[%clk 0:02:46.3]}
15... Bd6 {[%clk 0:02:26.5]} 16. Ng3 {[%clk 0:02:46.1]} 16... f5 {[%clk
0:02:23.3]} 17. Qc2 {[%clk 0:02:41.7]} 17... a4 {[%clk 0:02:22.1]} 18. Bc1
{[%clk 0:02:41.4]} 18... Qf6 {[%clk 0:02:15.3]} 19. Nh5 {[%clk 0:02:35.9]} 19...
Qf7 {[%clk 0:02:05.9]} 20. Nf4 {[%clk 0:02:33.8]} 20... Rce8 {[%clk 0:02:03.7]}
21. h4 {[%clk 0:02:26.5]} 21... g6 {[%clk 0:01:48.7]} 22. Ng5 {[%clk 0:02:25.8]}
22... Nxg5 {[%clk 0:01:42.8]} 23. Rxe8 {[%clk 0:02:26]} 23... Rxe8 {[%clk
0:01:32.2]} 24. hxg5 {[%clk 0:02:23.1]} 24... Re1+ {[%clk 0:01:30.5]} 25. Kh2
{[%clk 0:02:23.5]} 25... Bxf4+ {[%clk 0:01:29.3]} 26. Bxf4 {[%clk 0:02:23.2]}
26... Rxa1 {[%clk 0:01:29]} 27. Qe2 {[%clk 0:02:23.6]} 27... Rxa3 {[%clk
0:01:11.4]} 28. Qe3 {[%clk 0:02:23.4]} 28... Rb3 {[%clk 0:01:02.9]} 29. Qe1
{[%clk 0:02:18.5]} 29... a3 {[%clk 0:01:01.2]} 30. Qa1 {[%clk 0:02:15.8]} 30...
Qe6 {[%clk 0:00:58]} 31. Be3 {[%clk 0:02:13.4]} 31... Qe4 {[%clk 0:00:53.3]} 32.
g3 {[%clk 0:02:12.1]} 32... Qb1 {[%clk 0:00:48.7]} 0-1

[Event "Early-Titled-Tuesday-Blitz-September-12-2023"]
[Site "Chess.com"]
[Date "2023.09.12"]
[Round "7"]
[White "Vuk2000"]
[Black "sergoy"]
[Result "0-1"]
[WhiteElo "2759"]
[BlackElo "2931"]
[TimeControl "180+1"]
[EndTime "9:15:29 PDT"]
[Termination "sergoy won by resignation"]

1. d4 {[%clk 0:03:00.9]} 1... Nf6 {[%clk 0:02:59.9]} 2. Bg5 {[%clk 0:03:01.3]}
2... c5 {[%clk 0:02:58]} 3. Bxf6 {[%clk 0:03:01.2]} 3... gxf6 {[%clk 0:02:58.9]}
4. d5 {[%clk 0:03:01.3]} 4... f5 {[%clk 0:02:48.7]} 5. c4 {[%clk 0:03:00.9]}
5... Bg7 {[%clk 0:02:48.6]} 6. Qc2 {[%clk 0:03:00.9]} 6... d6 {[%clk 0:02:47.7]}
7. e3 {[%clk 0:03:00.1]} 7... e6 {[%clk 0:02:47]} 8. Nc3 {[%clk 0:02:56.5]} 8...
O-O {[%clk 0:02:42.6]} 9. Be2 {[%clk 0:02:51]} 9... a6 {[%clk 0:02:42.6]} 10.
Nf3 {[%clk 0:02:45.5]} 10... e5 {[%clk 0:02:34.7]} 11. O-O {[%clk 0:02:32.9]}
11... Qf6 {[%clk 0:02:22.6]} 12. Nd2 {[%clk 0:02:06]} 12... f4 {[%clk 0:02:20]}
13. Bd3 {[%clk 0:01:52.5]} 13... Qh6 {[%clk 0:02:14.8]} 14. exf4 {[%clk
0:01:51.4]} 14... exf4 {[%clk 0:02:15.7]} 15. Nf3 {[%clk 0:01:41.6]} 15... Nd7
{[%clk 0:02:15.8]} 16. Ne4 {[%clk 0:01:24.7]} 16... Ne5 {[%clk 0:02:15.3]} 17.
Nxe5 {[%clk 0:01:21.9]} 17... Bxe5 {[%clk 0:02:16.2]} 18. Nd2 {[%clk 0:01:17.7]}
18... Bg4 {[%clk 0:02:06.3]} 19. Bf5 {[%clk 0:01:13.2]} 19... f3 {[%clk
0:02:03]} 20. h3 {[%clk 0:00:18.5]} 20... Bxf5 {[%clk 0:02:00.8]} 21. Qxf5
{[%clk 0:00:16.5]} 21... Qxd2 {[%clk 0:02:01.2]} 22. Qxf3 {[%clk 0:00:16.5]}
22... Qf4 {[%clk 0:02:01.3]} 0-1

[Event "Early-Titled-Tuesday-Blitz-September-12-2023"]
[Site "Chess.com"]
[Date "2023.09.12"]
[Round "7"]
[White "Srisshhhtea"]
[Black "lrestevez"]
[Result "1-0"]
[WhiteElo "2426"]
[BlackElo "2142"]
[TimeControl "180+1"]
[EndTime "9:15:31 PDT"]
[Termination "Srisshhhtea won by resignation"]

1. d4 {[%clk 0:03:00.9]} 1... Nf6 {[%clk 0:02:58.5]} 2. c4 {[%clk 0:03:01.1]}
2... e5 {[%clk 0:02:57.7]} 3. dxe5 {[%clk 0:03:00.9]} 3... Ng4 {[%clk
0:02:57.8]} 4. Bf4 {[%clk 0:03:01.4]} 4... g5 {[%clk 0:02:57.1]} 5. Bg3 {[%clk
0:03:01.3]} 5... Bg7 {[%clk 0:02:57.5]} 6. Nf3 {[%clk 0:03:00.1]} 6... Nc6
{[%clk 0:02:57.8]} 7. h4 {[%clk 0:02:56.4]} 7... Ngxe5 {[%clk 0:02:56.9]} 8.
Nxg5 {[%clk 0:02:54.5]} 8... h6 {[%clk 0:02:47.5]} 9. Ne4 {[%clk 0:02:46.2]}
9... Nxc4 {[%clk 0:02:45]} 10. Nbc3 {[%clk 0:02:44.1]} 10... d6 {[%clk 0:02:09]}
11. e3 {[%clk 0:02:44]} 11... N4e5 {[%clk 0:01:43.4]} 12. Be2 {[%clk 0:02:31.6]}
12... Bf5 {[%clk 0:01:43.4]} 13. h5 {[%clk 0:02:27]} 13... Bxe4 {[%clk
0:01:31.3]} 14. Nxe4 {[%clk 0:02:27.9]} 14... Qe7 {[%clk 0:01:31.6]} 15. Qb3
{[%clk 0:02:22.2]} 15... O-O-O {[%clk 0:01:26.6]} 16. Nc3 {[%clk 0:02:18.4]}
16... Kb8 {[%clk 0:01:15.9]} 17. Bh4 {[%clk 0:02:17]} 17... f6 {[%clk
0:01:13.2]} 18. O-O-O {[%clk 0:02:15.6]} 18... Nf7 {[%clk 0:01:08.5]} 19. Kb1
{[%clk 0:02:11.9]} 19... Qd7 {[%clk 0:01:06.5]} 20. Ka1 {[%clk 0:02:08]} 20...
Ka8 {[%clk 0:01:06.1]} 21. Nd5 {[%clk 0:02:07.3]} 21... Ng5 {[%clk 0:01:00]} 22.
Bb5 {[%clk 0:01:55.5]} 22... a6 {[%clk 0:00:59.1]} 23. Bxc6 {[%clk 0:01:49]}
23... Qxc6 {[%clk 0:01:00]} 24. Rc1 {[%clk 0:01:41.9]} 1-0

[Event "Early-Titled-Tuesday-Blitz-September-12-2023"]
[Site "Chess.com"]
[Date "2023.09.12"]
[Round "7"]
[White "Alphafischer2019"]
[Black "Raskolnikov6"]
[Result "1-0"]
[WhiteElo "2542"]
[BlackElo "2279"]
[TimeControl "180+1"]
[EndTime "9:15:35 PDT"]
[Termination "Alphafischer2019 won by resignation"]

1. d4 {[%clk 0:03:00.9]} 1... d5 {[%clk 0:02:58.1]} 2. Nc3 {[%clk 0:03:00.1]}
2... Nf6 {[%clk 0:02:53.9]} 3. Bf4 {[%clk 0:03:00.5]} 3... c6 {[%clk 0:02:51.9]}
4. e3 {[%clk 0:03:00.2]} 4... Bf5 {[%clk 0:02:51]} 5. f3 {[%clk 0:03:00]} 5...
e6 {[%clk 0:02:48.1]} 6. g4 {[%clk 0:02:58.4]} 6... Bg6 {[%clk 0:02:47.9]} 7. h4
{[%clk 0:02:59]} 7... h5 {[%clk 0:02:47.8]} 8. g5 {[%clk 0:02:59.4]} 8... Nfd7
{[%clk 0:02:45.6]} 9. Bd3 {[%clk 0:02:59.8]} 9... Bb4 {[%clk 0:02:29]} 10. Bxg6
{[%clk 0:02:57.3]} 10... fxg6 {[%clk 0:02:29.9]} 11. Qd3 {[%clk 0:02:57.6]}
11... Kf7 {[%clk 0:02:27.1]} 12. Ne2 {[%clk 0:02:58.2]} 12... Re8 {[%clk
0:02:25.8]} 13. Bxb8 {[%clk 0:02:53.4]} 13... Qxb8 {[%clk 0:02:20.6]} 14. f4
{[%clk 0:02:53.3]} 14... c5 {[%clk 0:02:11.6]} 15. O-O {[%clk 0:02:51.3]} 15...
c4 {[%clk 0:02:10.5]} 16. Qd1 {[%clk 0:02:49.8]} 16... b5 {[%clk 0:01:58.2]} 17.
Nb1 {[%clk 0:02:46.1]} 17... Bd6 {[%clk 0:01:54.8]} 18. Nd2 {[%clk 0:02:45.9]}
18... b4 {[%clk 0:01:52.2]} 19. Nf3 {[%clk 0:02:46.4]} 19... Kg8 {[%clk
0:01:49.3]} 20. c3 {[%clk 0:02:42.2]} 20... a5 {[%clk 0:01:47.3]} 21. Qc2 {[%clk
0:02:41.9]} 21... Nf8 {[%clk 0:01:44.5]} 22. Ne5 {[%clk 0:02:42.6]} 22... Bxe5
{[%clk 0:01:33.1]} 23. fxe5 {[%clk 0:02:43.5]} 23... Ra7 {[%clk 0:01:26.4]} 24.
Nf4 {[%clk 0:02:41.9]} 24... bxc3 {[%clk 0:01:08.8]} 25. bxc3 {[%clk 0:02:40.6]}
25... Rb7 {[%clk 0:01:09.5]} 26. Rab1 {[%clk 0:02:37.2]} 26... Ree7 {[%clk
0:00:44.8]} 27. Nxg6 {[%clk 0:02:34.5]} 27... Nxg6 {[%clk 0:00:33.3]} 28. Qxg6
{[%clk 0:02:35.4]} 28... Rxb1 {[%clk 0:00:32.2]} 29. Rxb1 {[%clk 0:02:34.1]}
29... Qf8 {[%clk 0:00:29.5]} 30. Rf1 {[%clk 0:02:30.3]} 30... Qb8 {[%clk
0:00:22.2]} 31. Qxh5 {[%clk 0:02:26.2]} 31... Qe8 {[%clk 0:00:11.9]} 32. g6
{[%clk 0:02:25.2]} 1-0

[Event "Early-Titled-Tuesday-Blitz-September-12-2023"]
[Site "Chess.com"]
[Date "2023.09.12"]
[Round "7"]
[White "the_chess_child"]
[Black "Zampronha1971"]
[Result "1-0"]
[WhiteElo "2889"]
[BlackElo "2342"]
[TimeControl "180+1"]
[EndTime "9:15:49 PDT"]
[Termination "the_chess_child won by resignation"]

1. e4 {[%clk 0:03:00.9]} 1... c5 {[%clk 0:02:59.9]} 2. Nf3 {[%clk 0:03:00.7]}
2... e6 {[%clk 0:03:00.5]} 3. d3 {[%clk 0:02:59.9]} 3... d5 {[%clk 0:02:59.9]}
4. Qe2 {[%clk 0:02:59.9]} 4... Be7 {[%clk 0:02:50.3]} 5. g3 {[%clk 0:02:54.5]}
5... Nc6 {[%clk 0:02:50]} 6. Bg2 {[%clk 0:02:54.4]} 6... Nf6 {[%clk 0:02:50.6]}
7. O-O {[%clk 0:02:50.3]} 7... O-O {[%clk 0:02:51]} 8. e5 {[%clk 0:02:50.4]}
8... Nd7 {[%clk 0:02:51.2]} 9. c4 {[%clk 0:02:51.2]} 9... Nb6 {[%clk 0:02:44.8]}
10. b3 {[%clk 0:02:47.8]} 10... a5 {[%clk 0:02:42.2]} 11. a4 {[%clk 0:02:45.4]}
11... Nb4 {[%clk 0:02:39.4]} 12. Rd1 {[%clk 0:02:18]} 12... Qc7 {[%clk
0:02:23.4]} 13. Nc3 {[%clk 0:02:13.9]} 13... Bd7 {[%clk 0:02:22.6]} 14. Bf4
{[%clk 0:02:05.1]} 14... Bc6 {[%clk 0:02:21.3]} 15. h4 {[%clk 0:02:03.7]} 15...
Rad8 {[%clk 0:02:17.9]} 16. h5 {[%clk 0:01:57.6]} 16... Nc8 {[%clk 0:02:04]} 17.
h6 {[%clk 0:01:57.4]} 17... g6 {[%clk 0:02:03.5]} 18. Bh3 {[%clk 0:01:52.1]}
18... b6 {[%clk 0:01:56.6]} 19. Nb5 {[%clk 0:01:34.5]} 19... Bxb5 {[%clk
0:01:52]} 20. axb5 {[%clk 0:01:35.4]} 20... dxc4 {[%clk 0:01:50.2]} 21. dxc4
{[%clk 0:01:35.1]} 21... Rxd1+ {[%clk 0:01:45.7]} 22. Rxd1 {[%clk 0:01:36]}
22... Rd8 {[%clk 0:01:46]} 23. Rxd8+ {[%clk 0:01:32.7]} 23... Qxd8 {[%clk
0:01:46.1]} 24. Qe4 {[%clk 0:01:31.9]} 24... Nd3 {[%clk 0:01:22.4]} 25. Be3
{[%clk 0:01:30.2]} 25... a4 {[%clk 0:01:10]} 26. bxa4 {[%clk 0:01:29.6]} 26...
Nb2 {[%clk 0:01:10.6]} 27. Bf1 {[%clk 0:01:23.7]} 27... Nxa4 {[%clk 0:01:08.4]}
28. Qc2 {[%clk 0:01:23.7]} 1-0

[Event "Early-Titled-Tuesday-Blitz-September-12-2023"]
[Site "Chess.com"]
[Date "2023.09.12"]
[Round "7"]
[White "MokshAD1603"]
[Black "Gareth-Bale11"]
[Result "0-1"]
[WhiteElo "2586"]
[BlackElo "2779"]
[TimeControl "180+1"]
[EndTime "9:16:20 PDT"]
[Termination "Gareth-Bale11 won by resignation"]

1. c4 {[%clk 0:02:52.1]} 1... e5 {[%clk 0:02:58.2]} 2. Nc3 {[%clk 0:02:49.2]}
2... Nf6 {[%clk 0:02:57.8]} 3. Nf3 {[%clk 0:02:49.8]} 3... Nc6 {[%clk
0:02:57.9]} 4. g3 {[%clk 0:02:50.1]} 4... d5 {[%clk 0:02:57.1]} 5. cxd5 {[%clk
0:02:49.9]} 5... Nxd5 {[%clk 0:02:58]} 6. Bg2 {[%clk 0:02:50.4]} 6... Nb6 {[%clk
0:02:56.6]} 7. O-O {[%clk 0:02:50.4]} 7... Be7 {[%clk 0:02:57.2]} 8. b3 {[%clk
0:02:47.6]} 8... O-O {[%clk 0:02:57]} 9. Bb2 {[%clk 0:02:48]} 9... Re8 {[%clk
0:02:57.6]} 10. Rc1 {[%clk 0:02:47.3]} 10... f6 {[%clk 0:02:54.8]} 11. d4 {[%clk
0:02:34.3]} 11... Nxd4 {[%clk 0:02:43]} 12. Nxd4 {[%clk 0:02:27.3]} 12... exd4
{[%clk 0:02:42.9]} 13. Nb5 {[%clk 0:02:28]} 13... c6 {[%clk 0:02:41.4]} 14. Nxd4
{[%clk 0:02:23.7]} 14... Bf8 {[%clk 0:02:41.3]} 15. b4 {[%clk 0:02:12.4]} 15...
Qe7 {[%clk 0:02:33.3]} 16. a3 {[%clk 0:01:48.1]} 16... Qf7 {[%clk 0:02:30.1]}
17. Qc2 {[%clk 0:01:45.1]} 17... a5 {[%clk 0:02:25.5]} 18. b5 {[%clk 0:01:41.8]}
18... c5 {[%clk 0:02:25]} 19. Nb3 {[%clk 0:01:35.8]} 19... Be6 {[%clk
0:02:02.4]} 20. Nd2 {[%clk 0:01:27.1]} 20... a4 {[%clk 0:01:57]} 21. Rfd1 {[%clk
0:01:20.8]} 21... Kh8 {[%clk 0:01:43.8]} 22. Bc3 {[%clk 0:01:11.1]} 22... Bb3
{[%clk 0:01:42.6]} 23. Nxb3 {[%clk 0:01:09.3]} 23... axb3 {[%clk 0:01:43.5]} 24.
Qb2 {[%clk 0:01:01.4]} 24... c4 {[%clk 0:01:33.6]} 25. Bd4 {[%clk 0:00:51.9]}
25... Bxa3 {[%clk 0:01:31.5]} 26. Qc3 {[%clk 0:00:52.2]} 26... Bxc1 {[%clk
0:01:24.4]} 27. Rxc1 {[%clk 0:00:53.1]} 27... Na4 {[%clk 0:01:18]} 28. Qxc4
{[%clk 0:00:50]} 28... Qxc4 {[%clk 0:01:17.3]} 29. Rxc4 {[%clk 0:00:50.3]} 29...
b2 {[%clk 0:01:14.2]} 30. Rb4 {[%clk 0:00:49.5]} 30... Nc3 {[%clk 0:01:14.5]}
0-1

[Event "Early-Titled-Tuesday-Blitz-September-12-2023"]
[Site "Chess.com"]
[Date "2023.09.12"]
[Round "7"]
[White "tetrix83"]
[Black "ChEsper99"]
[Result "1-0"]
[WhiteElo "2537"]
[BlackElo "2228"]
[TimeControl "180+1"]
[EndTime "9:16:20 PDT"]
[Termination "tetrix83 won by resignation"]

1. e4 {[%clk 0:03:00.9]} 1... c5 {[%clk 0:02:58.2]} 2. Nf3 {[%clk 0:03:00.9]}
2... d6 {[%clk 0:02:58.3]} 3. Bc4 {[%clk 0:02:58]} 3... e6 {[%clk 0:02:50.7]} 4.
O-O {[%clk 0:02:44.7]} 4... Nf6 {[%clk 0:02:49.7]} 5. Re1 {[%clk 0:02:44.4]}
5... Be7 {[%clk 0:02:47.5]} 6. Bb3 {[%clk 0:02:44.2]} 6... Nc6 {[%clk
0:02:41.7]} 7. c3 {[%clk 0:02:43.7]} 7... O-O {[%clk 0:02:39.8]} 8. d4 {[%clk
0:02:43.5]} 8... cxd4 {[%clk 0:02:40.7]} 9. cxd4 {[%clk 0:02:44.3]} 9... d5
{[%clk 0:02:31.4]} 10. e5 {[%clk 0:02:44]} 10... Ne4 {[%clk 0:02:29.4]} 11. Nbd2
{[%clk 0:02:44.2]} 11... Nxd2 {[%clk 0:02:27.6]} 12. Bxd2 {[%clk 0:02:45.1]}
12... Bd7 {[%clk 0:02:22]} 13. Bc2 {[%clk 0:02:37.5]} 13... Rc8 {[%clk
0:02:07.8]} 14. Rc1 {[%clk 0:02:34.6]} 14... Nb4 {[%clk 0:01:40]} 15. Bb1 {[%clk
0:02:28.6]} 15... Bb5 {[%clk 0:01:18.9]} 16. Qb3 {[%clk 0:02:16.9]} 16... Bc4
{[%clk 0:01:03.1]} 17. Qe3 {[%clk 0:01:57.4]} 17... Bxa2 {[%clk 0:00:27.7]} 18.
Bxb4 {[%clk 0:01:54.2]} 18... Bxb4 {[%clk 0:00:26.3]} 19. Bxa2 {[%clk
0:01:51.2]} 19... Bxe1 {[%clk 0:00:25.6]} 20. Rxe1 {[%clk 0:01:49.7]} 20... Qa5
{[%clk 0:00:24.7]} 21. Bb1 {[%clk 0:01:48.5]} 21... g6 {[%clk 0:00:21.6]} 22. h4
{[%clk 0:01:48.1]} 22... Kg7 {[%clk 0:00:20.3]} 23. Qf4 {[%clk 0:01:45.4]} 23...
Qd8 {[%clk 0:00:16.3]} 24. h5 {[%clk 0:01:44.4]} 24... Qe7 {[%clk 0:00:14.3]}
25. g3 {[%clk 0:01:41.1]} 25... Rc4 {[%clk 0:00:09.9]} 26. Kg2 {[%clk
0:01:40.7]} 26... Rfc8 {[%clk 0:00:07.8]} 27. Rh1 {[%clk 0:01:39.4]} 27... Rc1
{[%clk 0:00:04.5]} 28. Rxc1 {[%clk 0:01:38.4]} 1-0

[Event "Early-Titled-Tuesday-Blitz-September-12-2023"]
[Site "Chess.com"]
[Date "2023.09.12"]
[Round "7"]
[White "MateusViageiro"]
[Black "Dr_crypt"]
[Result "0-1"]
[WhiteElo "2138"]
[BlackElo "2410"]
[TimeControl "180+1"]
[EndTime "9:16:20 PDT"]
[Termination "Dr_crypt won by resignation"]

1. e4 {[%clk 0:03:00.9]} 1... d5 {[%clk 0:02:58.6]} 2. exd5 {[%clk 0:02:52.5]}
2... Qxd5 {[%clk 0:02:59.3]} 3. Nc3 {[%clk 0:02:49.7]} 3... Qd6 {[%clk
0:02:58.6]} 4. Nf3 {[%clk 0:02:45.4]} 4... c6 {[%clk 0:02:58.4]} 5. Bc4 {[%clk
0:02:44.6]} 5... Bf5 {[%clk 0:02:56.1]} 6. O-O {[%clk 0:02:44.1]} 6... e6 {[%clk
0:02:55.9]} 7. Re1 {[%clk 0:02:43.9]} 7... Nd7 {[%clk 0:02:54.2]} 8. d3 {[%clk
0:02:44.2]} 8... Ngf6 {[%clk 0:02:53.7]} 9. Nh4 {[%clk 0:02:42.4]} 9... Bg4
{[%clk 0:02:52.9]} 10. f3 {[%clk 0:02:32.6]} 10... Bh5 {[%clk 0:02:49.9]} 11.
Be3 {[%clk 0:02:26.8]} 11... Qc7 {[%clk 0:02:45]} 12. Qd2 {[%clk 0:02:25.3]}
12... Bd6 {[%clk 0:02:43.3]} 13. g4 {[%clk 0:02:18.4]} 13... Bg6 {[%clk
0:02:38.3]} 14. Qg2 {[%clk 0:02:17.2]} 14... O-O-O {[%clk 0:02:03.4]} 15. a4
{[%clk 0:02:16]} 15... Bc5 {[%clk 0:02:00.6]} 16. d4 {[%clk 0:02:14.6]} 16...
Bb4 {[%clk 0:02:00.1]} 17. Reb1 {[%clk 0:02:01.8]} 17... Nd5 {[%clk 0:01:51.5]}
18. Bxd5 {[%clk 0:01:56.3]} 18... exd5 {[%clk 0:01:51.3]} 19. Na2 {[%clk
0:01:53.7]} 19... Bd6 {[%clk 0:01:50]} 20. b4 {[%clk 0:01:52.4]} 20... Rde8
{[%clk 0:01:50.5]} 21. Bd2 {[%clk 0:01:47.2]} 21... Nb6 {[%clk 0:01:45.7]} 22.
b5 {[%clk 0:01:45.2]} 22... Nc4 {[%clk 0:01:45.9]} 23. Bc1 {[%clk 0:01:42.2]}
23... c5 {[%clk 0:01:44.1]} 24. Nc3 {[%clk 0:01:33.5]} 24... cxd4 {[%clk
0:01:40.1]} 25. Nxd5 {[%clk 0:01:26.1]} 25... Qc5 {[%clk 0:01:39.3]} 26. f4
{[%clk 0:00:22]} 26... Re1+ {[%clk 0:01:38]} 27. Kf2 {[%clk 0:00:20]} 27... Be4
{[%clk 0:01:37.8]} 0-1

[Event "Early-Titled-Tuesday-Blitz-September-12-2023"]
[Site "Chess.com"]
[Date "2023.09.12"]
[Round "7"]
[White "Khromkin"]
[Black "MikeSailer"]
[Result "1-0"]
[WhiteElo "2431"]
[BlackElo "2176"]
[TimeControl "180+1"]
[EndTime "9:16:25 PDT"]
[Termination "Khromkin won on time"]

1. d4 {[%clk 0:02:59.9]} 1... d5 {[%clk 0:03:00.3]} 2. c4 {[%clk 0:03:00.3]}
2... Bf5 {[%clk 0:02:59.8]} 3. cxd5 {[%clk 0:02:59.2]} 3... Bxb1 {[%clk
0:02:59]} 4. Qa4+ {[%clk 0:02:59.5]} 4... Qd7 {[%clk 0:02:56.7]} 5. Qxd7+ {[%clk
0:02:59]} 5... Nxd7 {[%clk 0:02:56.4]} 6. Rxb1 {[%clk 0:02:59.6]} 6... Ngf6
{[%clk 0:02:54.7]} 7. f3 {[%clk 0:02:58.1]} 7... Nxd5 {[%clk 0:02:45.2]} 8. a3
{[%clk 0:02:48.3]} 8... e5 {[%clk 0:02:16.4]} 9. e4 {[%clk 0:02:47.7]} 9... N5b6
{[%clk 0:02:09.5]} 10. d5 {[%clk 0:02:23.9]} 10... Bc5 {[%clk 0:01:48.6]} 11. b4
{[%clk 0:02:11.3]} 11... Bxg1 {[%clk 0:01:41.1]} 12. Rxg1 {[%clk 0:02:10.6]}
12... a6 {[%clk 0:01:38.2]} 13. Be3 {[%clk 0:02:09.3]} 13... Na4 {[%clk
0:01:27.5]} 14. Rc1 {[%clk 0:02:01.8]} 14... O-O-O {[%clk 0:01:22.7]} 15. b5
{[%clk 0:01:47.6]} 15... axb5 {[%clk 0:01:11.7]} 16. Bxb5 {[%clk 0:01:45.2]}
16... Ndb6 {[%clk 0:01:04.5]} 17. Ke2 {[%clk 0:01:36.4]} 17... Rd6 {[%clk
0:00:50.2]} 18. Rc2 {[%clk 0:01:33.6]} 18... Kb8 {[%clk 0:00:43.4]} 19. Rb1
{[%clk 0:01:29]} 19... Rg6 {[%clk 0:00:33.9]} 20. g3 {[%clk 0:01:24.5]} 20... h5
{[%clk 0:00:27.3]} 21. Rb4 {[%clk 0:01:23.9]} 1-0

[Event "Early-Titled-Tuesday-Blitz-September-12-2023"]
[Site "Chess.com"]
[Date "2023.09.12"]
[Round "7"]
[White "Alexandr_Predke"]
[Black "JiaHaoxiang"]
[Result "1-0"]
[WhiteElo "2896"]
[BlackElo "2601"]
[TimeControl "180+1"]
[EndTime "9:16:27 PDT"]
[Termination "Alexandr_Predke won by resignation"]

1. Nf3 {[%clk 0:03:00.9]} 1... d5 {[%clk 0:02:40.8]} 2. g3 {[%clk 0:02:59.1]}
2... Nf6 {[%clk 0:02:40.8]} 3. Bg2 {[%clk 0:02:59.7]} 3... c6 {[%clk 0:02:33.8]}
4. O-O {[%clk 0:02:59.6]} 4... Bf5 {[%clk 0:02:33.5]} 5. c4 {[%clk 0:02:58.1]}
5... e6 {[%clk 0:02:33.5]} 6. Qb3 {[%clk 0:02:49.7]} 6... Qb6 {[%clk 0:02:32.8]}
7. d3 {[%clk 0:02:49.9]} 7... Nbd7 {[%clk 0:02:32.1]} 8. cxd5 {[%clk 0:02:40.4]}
8... exd5 {[%clk 0:02:30.6]} 9. Qc2 {[%clk 0:02:39.6]} 9... Be7 {[%clk
0:02:18.3]} 10. Nc3 {[%clk 0:02:38.8]} 10... O-O {[%clk 0:02:18.4]} 11. e4
{[%clk 0:02:38.6]} 11... dxe4 {[%clk 0:02:17.2]} 12. dxe4 {[%clk 0:02:39.5]}
12... Bg6 {[%clk 0:02:17.8]} 13. Nh4 {[%clk 0:02:39.3]} 13... Rad8 {[%clk
0:01:58.1]} 14. Be3 {[%clk 0:02:38.3]} 14... Qa6 {[%clk 0:01:57.2]} 15. Rad1
{[%clk 0:02:05.1]} 15... Ne5 {[%clk 0:01:54]} 16. h3 {[%clk 0:01:52.6]} 16...
Bh5 {[%clk 0:01:29.5]} 17. Nf5 {[%clk 0:01:46.8]} 17... Bb4 {[%clk 0:01:24]} 18.
Rd4 {[%clk 0:01:39.5]} 18... Bxc3 {[%clk 0:00:42.6]} 19. Qxc3 {[%clk 0:01:29.4]}
19... Rde8 {[%clk 0:00:25.9]} 20. f4 {[%clk 0:01:21.6]} 20... c5 {[%clk
0:00:16.3]} 21. Rd6 {[%clk 0:01:19.5]} 21... Nc6 {[%clk 0:00:16.7]} 22. Rxf6
{[%clk 0:01:16.9]} 1-0

[Event "Early-Titled-Tuesday-Blitz-September-12-2023"]
[Site "Chess.com"]
[Date "2023.09.12"]
[Round "7"]
[White "ajedrezhoy"]
[Black "ElenaPershina"]
[Result "1-0"]
[WhiteElo "2395"]
[BlackElo "2257"]
[TimeControl "180+1"]
[EndTime "9:16:29 PDT"]
[Termination "ajedrezhoy won by resignation"]

1. c4 {[%clk 0:03:00.9]} 1... c6 {[%clk 0:02:58.9]} 2. Nf3 {[%clk 0:02:58.8]}
2... d5 {[%clk 0:02:59.2]} 3. e3 {[%clk 0:02:56.9]} 3... Nf6 {[%clk 0:02:59.4]}
4. Nc3 {[%clk 0:02:55.2]} 4... Bg4 {[%clk 0:02:58.7]} 5. cxd5 {[%clk 0:02:51.4]}
5... cxd5 {[%clk 0:02:57.9]} 6. Qb3 {[%clk 0:02:49.1]} 6... Bc8 {[%clk
0:02:47.9]} 7. Bb5+ {[%clk 0:02:47.2]} 7... Nc6 {[%clk 0:02:43.1]} 8. O-O {[%clk
0:02:41.7]} 8... e6 {[%clk 0:02:39]} 9. d4 {[%clk 0:02:40.5]} 9... Bd6 {[%clk
0:02:37.5]} 10. Bxc6+ {[%clk 0:02:34.7]} 10... bxc6 {[%clk 0:02:36.7]} 11. Na4
{[%clk 0:02:35.4]} 11... O-O {[%clk 0:02:22.3]} 12. Bd2 {[%clk 0:02:34.5]} 12...
Rb8 {[%clk 0:02:19.3]} 13. Qc2 {[%clk 0:02:33.6]} 13... Ne4 {[%clk 0:02:06.4]}
14. Rfc1 {[%clk 0:02:27.3]} 14... Bd7 {[%clk 0:01:54.7]} 15. Nc5 {[%clk
0:02:18.9]} 15... Nxc5 {[%clk 0:01:45.3]} 16. dxc5 {[%clk 0:02:18.6]} 16... Bc7
{[%clk 0:01:44.7]} 17. b4 {[%clk 0:02:00.4]} 17... e5 {[%clk 0:01:43.3]} 18. e4
{[%clk 0:01:59.7]} 18... d4 {[%clk 0:01:31.2]} 19. Ne1 {[%clk 0:01:45.2]} 19...
f5 {[%clk 0:01:29.2]} 20. f3 {[%clk 0:01:43.4]} 20... fxe4 {[%clk 0:01:24.7]}
21. fxe4 {[%clk 0:01:43.3]} 21... Qh4 {[%clk 0:01:22.2]} 22. Nf3 {[%clk
0:01:41.9]} 22... Qh5 {[%clk 0:00:56.8]} 23. Qc4+ {[%clk 0:01:38]} 23... Kh8
{[%clk 0:00:55.3]} 24. Rf1 {[%clk 0:01:36.3]} 24... Bg4 {[%clk 0:00:51.2]} 25.
Ng5 {[%clk 0:01:28.1]} 25... Be2 {[%clk 0:00:29.4]} 26. Nf7+ {[%clk 0:01:27.8]}
26... Rxf7 {[%clk 0:00:19.1]} 27. Qxf7 {[%clk 0:01:26.8]} 1-0